[Event "*** Titled Tuesday Blitz"]
[Site "Chess.com"]
[Date "2021.03.02"]
[Round "5"]
[White "Karla"]
[Black "mbojan"]
[Result "1-0"]
[WhiteElo "2337"]
[BlackElo "2617"]
[TimeControl "180+1"]
[EndTime "10:54:56 PST"]
[Termination "Karla won on time"]

1. e4 {[%clk 0:03:00.9]} 1... g6 {[%clk 0:03:00.4]} 2. d4 {[%clk 0:03:01.8]}
2... Bg7 {[%clk 0:03:00.9]} 3. Nc3 {[%clk 0:03:00.8]} 3... d6 {[%clk 0:03:01.4]}
4. f4 {[%clk 0:02:54]} 4... a6 {[%clk 0:03:01.4]} 5. Nf3 {[%clk 0:02:51]} 5...
b5 {[%clk 0:03:01.5]} 6. Bd3 {[%clk 0:02:47.3]} 6... Nd7 {[%clk 0:03:00.7]} 7.
e5 {[%clk 0:02:44]} 7... c5 {[%clk 0:03:00.6]} 8. Be4 {[%clk 0:02:40.3]} 8...
Rb8 {[%clk 0:02:58.5]} 9. O-O {[%clk 0:02:36.6]} 9... cxd4 {[%clk 0:02:52.3]}
10. Nxd4 {[%clk 0:02:33.4]} 10... dxe5 {[%clk 0:02:52.6]} 11. Nc6 {[%clk
0:02:27.7]} 11... Qb6+ {[%clk 0:02:52.8]} 12. Kh1 {[%clk 0:02:19.3]} 12... Ngf6
{[%clk 0:02:53.4]} 13. Nxb8 {[%clk 0:02:15.3]} 13... Qxb8 {[%clk 0:02:54.3]} 14.
fxe5 {[%clk 0:02:12]} 14... Nxe5 {[%clk 0:02:52.6]} 15. Bf4 {[%clk 0:02:08]}
15... O-O {[%clk 0:02:35.8]} 16. Bf3 {[%clk 0:02:04.4]} 16... e6 {[%clk
0:02:09.4]} 17. Qe2 {[%clk 0:02:00.2]} 17... Nfd7 {[%clk 0:02:08.8]} 18. Rac1
{[%clk 0:01:56.3]} 18... Qb6 {[%clk 0:02:03]} 19. Rcd1 {[%clk 0:01:52.2]} 19...
b4 {[%clk 0:01:14.1]} 20. Ne4 {[%clk 0:01:48.4]} 20... Bb7 {[%clk 0:00:59.3]}
21. Nd6 {[%clk 0:01:40.3]} 21... Nxf3 {[%clk 0:00:51.7]} 22. gxf3 {[%clk
0:01:41.2]} 22... Bd5 {[%clk 0:00:48.7]} 23. b3 {[%clk 0:01:36.3]} 23... Qc6
{[%clk 0:00:46]} 24. Nc4 {[%clk 0:01:32.7]} 24... Rc8 {[%clk 0:00:29.8]} 25. Rf2
{[%clk 0:01:22]} 25... h6 {[%clk 0:00:29.3]} 26. h4 {[%clk 0:01:18.5]} 26... Nf6
{[%clk 0:00:21.4]} 27. Ne3 {[%clk 0:01:14.5]} 27... a5 {[%clk 0:00:09]} 28. Nxd5
{[%clk 0:01:14.8]} 28... Nxd5 {[%clk 0:00:09.8]} 29. Be5 {[%clk 0:01:10.7]}
29... Bxe5 {[%clk 0:00:02.8]} 30. Qxe5 {[%clk 0:01:11.6]} 30... Qb6 {[%clk
0:00:03.4]} 31. Rg2 {[%clk 0:01:05.1]} 31... Ne3 {[%clk 0:00:03.7]} 32. Rxg6+
{[%clk 0:00:52.8]} 32... fxg6 {[%clk 0:00:03.6]} 33. Rd7 {[%clk 0:00:52.2]}
33... Nf5 {[%clk 0:00:01.9]} 34. Qf6 {[%clk 0:00:49.3]} 34... Ng3+ {[%clk
0:00:02.4]} 35. Kg2 {[%clk 0:00:45.9]} 35... Rxc2+ {[%clk 0:00:01.1]} 36. Kh3
{[%clk 0:00:43.7]} 36... Rh2+ {[%clk 0:00:01.7]} 37. Kxh2 {[%clk 0:00:42.4]}
37... Nf1+ {[%clk 0:00:01.8]} 38. Kh3 {[%clk 0:00:41.8]} 1-0

[Event "*** Titled Tuesday Blitz"]
[Site "Chess.com"]
[Date "2021.03.02"]
[Round "5"]
[White "Orest_Vovk"]
[Black "Godzillator"]
[Result "1-0"]
[WhiteElo "2506"]
[BlackElo "2294"]
[TimeControl "180+1"]
[EndTime "10:54:56 PST"]
[Termination "Orest_Vovk won on time"]

1. d4 {[%clk 0:03:00.9]} 1... d5 {[%clk 0:02:59.8]} 2. Nf3 {[%clk 0:03:00.6]}
2... Nf6 {[%clk 0:02:58.6]} 3. Bg5 {[%clk 0:03:00.4]} 3... c6 {[%clk 0:02:57.9]}
4. Nbd2 {[%clk 0:03:00.5]} 4... Bf5 {[%clk 0:02:55.8]} 5. e3 {[%clk 0:03:00.3]}
5... Nbd7 {[%clk 0:02:55.8]} 6. Bd3 {[%clk 0:02:55.8]} 6... Bg6 {[%clk
0:02:53.3]} 7. O-O {[%clk 0:02:51.9]} 7... e6 {[%clk 0:02:53]} 8. Ne5 {[%clk
0:02:51.9]} 8... Be7 {[%clk 0:02:51.1]} 9. f4 {[%clk 0:02:49.3]} 9... Nxe5
{[%clk 0:02:35.2]} 10. dxe5 {[%clk 0:02:48.2]} 10... Nd7 {[%clk 0:02:32.9]} 11.
Bxe7 {[%clk 0:02:46.6]} 11... Qxe7 {[%clk 0:02:32.4]} 12. Bxg6 {[%clk
0:02:44.1]} 12... hxg6 {[%clk 0:02:31.9]} 13. Nb3 {[%clk 0:02:22.3]} 13... g5
{[%clk 0:02:28.5]} 14. Qd4 {[%clk 0:02:09.9]} 14... gxf4 {[%clk 0:02:26.6]} 15.
exf4 {[%clk 0:02:09.2]} 15... g6 {[%clk 0:02:24.4]} 16. g3 {[%clk 0:01:57]}
16... b6 {[%clk 0:02:13.9]} 17. c4 {[%clk 0:01:56]} 17... c5 {[%clk 0:02:12.7]}
18. Qd3 {[%clk 0:01:55.4]} 18... d4 {[%clk 0:02:11]} 19. Nd2 {[%clk 0:01:51.7]}
19... f5 {[%clk 0:02:05.7]} 20. exf6 {[%clk 0:01:46.4]} 20... Qxf6 {[%clk
0:02:04.8]} 21. Ne4 {[%clk 0:01:44.4]} 21... Qe7 {[%clk 0:01:51.4]} 22. b4
{[%clk 0:01:35.4]} 22... O-O-O {[%clk 0:01:44.1]} 23. bxc5 {[%clk 0:01:26.4]}
23... Nxc5 {[%clk 0:01:44]} 24. Nxc5 {[%clk 0:01:23.6]} 24... Qxc5 {[%clk
0:01:43]} 25. Rfe1 {[%clk 0:01:17.6]} 25... Rd6 {[%clk 0:01:36.2]} 26. Re5
{[%clk 0:01:13]} 26... Qb4 {[%clk 0:01:27.2]} 27. Rb1 {[%clk 0:01:02]} 27... Qa4
{[%clk 0:01:24.8]} 28. c5 {[%clk 0:01:01]} 28... Rc6 {[%clk 0:01:06.6]} 29. cxb6
{[%clk 0:00:54]} 29... axb6 {[%clk 0:01:06.7]} 30. Qe4 {[%clk 0:00:39.5]} 30...
Qc4 {[%clk 0:00:59.4]} 31. Re1 {[%clk 0:00:30.5]} 1-0

[Event "*** Titled Tuesday Blitz"]
[Site "Chess.com"]
[Date "2021.03.02"]
[Round "5"]
[White "googlegoom"]
[Black "BvsN"]
[Result "1-0"]
[WhiteElo "2474"]
[BlackElo "2306"]
[TimeControl "180+1"]
[EndTime "10:54:58 PST"]
[Termination "googlegoom won by checkmate"]

1. Nf3 {[%clk 0:03:00.9]} 1... d5 {[%clk 0:02:59.6]} 2. b3 {[%clk 0:03:00.7]}
2... c6 {[%clk 0:02:52.8]} 3. Bb2 {[%clk 0:03:01.1]} 3... Bg4 {[%clk 0:02:52.1]}
4. e3 {[%clk 0:03:01.7]} 4... e6 {[%clk 0:02:50.6]} 5. Be2 {[%clk 0:03:02.1]}
5... Nd7 {[%clk 0:02:49.9]} 6. O-O {[%clk 0:03:01.8]} 6... Ngf6 {[%clk
0:02:50.1]} 7. d4 {[%clk 0:03:02.4]} 7... Bd6 {[%clk 0:02:49.1]} 8. Nbd2 {[%clk
0:03:02.8]} 8... O-O {[%clk 0:02:46.9]} 9. c4 {[%clk 0:03:03.3]} 9... Qb8 {[%clk
0:02:46.3]} 10. a3 {[%clk 0:03:02.7]} 10... a5 {[%clk 0:02:46.1]} 11. h3 {[%clk
0:03:02.5]} 11... Bh5 {[%clk 0:02:44.8]} 12. Bc3 {[%clk 0:03:03.1]} 12... b5
{[%clk 0:02:40.1]} 13. cxb5 {[%clk 0:02:55.6]} 13... cxb5 {[%clk 0:02:39.7]} 14.
Bb2 {[%clk 0:02:56.2]} 14... Rc8 {[%clk 0:02:27.3]} 15. Rc1 {[%clk 0:02:56.7]}
15... a4 {[%clk 0:02:07.9]} 16. Rxc8+ {[%clk 0:02:53.4]} 16... Qxc8 {[%clk
0:02:08]} 17. Bxb5 {[%clk 0:02:53.1]} 17... axb3 {[%clk 0:02:06.8]} 18. Qxb3
{[%clk 0:02:52.5]} 18... Rb8 {[%clk 0:01:53.3]} 19. a4 {[%clk 0:02:51.9]} 19...
Qd8 {[%clk 0:01:45.5]} 20. Ba3 {[%clk 0:02:46.7]} 20... Bc7 {[%clk 0:01:38.9]}
21. Rc1 {[%clk 0:02:43.1]} 21... Ba5 {[%clk 0:01:36.7]} 22. Bb4 {[%clk
0:02:41.7]} 22... h6 {[%clk 0:01:28.3]} 23. Qc3 {[%clk 0:02:28.1]} 23... Bxb4
{[%clk 0:01:20.6]} 24. Qxb4 {[%clk 0:02:27.7]} 24... Ra8 {[%clk 0:01:13.1]} 25.
Qd6 {[%clk 0:02:12.1]} 25... Ra7 {[%clk 0:00:49.5]} 26. Ne5 {[%clk 0:02:04.8]}
26... Ne8 {[%clk 0:00:33.3]} 27. Qb4 {[%clk 0:01:52.1]} 27... Nxe5 {[%clk
0:00:27]} 28. dxe5 {[%clk 0:01:53]} 28... Nc7 {[%clk 0:00:19.8]} 29. Qd6 {[%clk
0:01:50.1]} 29... Qb8 {[%clk 0:00:12]} 30. Nb3 {[%clk 0:01:41.3]} 30... Qb7
{[%clk 0:00:11.3]} 31. Nd4 {[%clk 0:01:34.1]} 31... Nxb5 {[%clk 0:00:08.9]} 32.
axb5 {[%clk 0:01:30]} 32... Ra8 {[%clk 0:00:08.4]} 33. b6 {[%clk 0:01:28.4]}
33... Bg6 {[%clk 0:00:07.6]} 34. Rc7 {[%clk 0:01:21]} 34... Ra1+ {[%clk
0:00:05.4]} 35. Kh2 {[%clk 0:01:20.6]} 35... Qa6 {[%clk 0:00:04.1]} 36. b7
{[%clk 0:01:14.1]} 36... Qf1 {[%clk 0:00:04.1]} 37. b8=Q+ {[%clk 0:01:12.2]}
37... Kh7 {[%clk 0:00:04.5]} 38. Nxe6 {[%clk 0:00:58.5]} 38... Qg1+ {[%clk
0:00:03.9]} 39. Kg3 {[%clk 0:00:58.2]} 39... Be4 {[%clk 0:00:02.1]} 40. Qg8+
{[%clk 0:00:46.3]} 40... Kg6 {[%clk 0:00:01.9]} 41. Qxg7+ {[%clk 0:00:45.5]}
41... Kh5 {[%clk 0:00:02.3]} 42. Qg4# {[%clk 0:00:44.9]} 1-0

[Event "*** Titled Tuesday Blitz"]
[Site "Chess.com"]
[Date "2021.03.02"]
[Round "5"]
[White "Julianos82"]
[Black "FMalexhdez"]
[Result "1-0"]
[WhiteElo "2352"]
[BlackElo "2152"]
[TimeControl "180+1"]
[EndTime "10:55:03 PST"]
[Termination "Julianos82 won on time"]

1. d4 {[%clk 0:03:00.9]} 1... Nf6 {[%clk 0:02:58.5]} 2. Nf3 {[%clk 0:03:00.7]}
2... d5 {[%clk 0:02:57.3]} 3. Bf4 {[%clk 0:02:59.8]} 3... c6 {[%clk 0:02:56.4]}
4. e3 {[%clk 0:02:58.7]} 4... g6 {[%clk 0:02:56.8]} 5. c4 {[%clk 0:02:57.2]}
5... Bg7 {[%clk 0:02:56.9]} 6. Nc3 {[%clk 0:02:56.4]} 6... O-O {[%clk
0:02:56.6]} 7. h3 {[%clk 0:02:55.4]} 7... a6 {[%clk 0:02:56.6]} 8. Rc1 {[%clk
0:02:54.2]} 8... b5 {[%clk 0:02:54.5]} 9. cxd5 {[%clk 0:02:45.5]} 9... Nxd5
{[%clk 0:02:48.7]} 10. Bg3 {[%clk 0:02:39.1]} 10... Nxc3 {[%clk 0:02:32.6]} 11.
Rxc3 {[%clk 0:02:33.9]} 11... Be6 {[%clk 0:02:31.6]} 12. a3 {[%clk 0:02:30.5]}
12... Qb6 {[%clk 0:02:14.6]} 13. Be2 {[%clk 0:02:24.3]} 13... a5 {[%clk
0:02:12.4]} 14. O-O {[%clk 0:02:15.7]} 14... b4 {[%clk 0:02:12.2]} 15. Rc1
{[%clk 0:02:09.2]} 15... Nd7 {[%clk 0:02:10.9]} 16. Qa4 {[%clk 0:02:03.8]} 16...
Rfc8 {[%clk 0:02:09.4]} 17. Bc4 {[%clk 0:01:52.3]} 17... Nf8 {[%clk 0:02:00.7]}
18. Ne5 {[%clk 0:01:46.7]} 18... c5 {[%clk 0:01:45]} 19. d5 {[%clk 0:01:38.2]}
19... Bf5 {[%clk 0:01:29.7]} 20. Rfe1 {[%clk 0:01:36.9]} 20... Bxe5 {[%clk
0:00:56.7]} 21. Bxe5 {[%clk 0:01:37.8]} 21... Nd7 {[%clk 0:00:48.4]} 22. Bf4
{[%clk 0:01:33.1]} 22... Nf6 {[%clk 0:00:48.6]} 23. f3 {[%clk 0:01:29.9]} 23...
Bd7 {[%clk 0:00:44.2]} 24. Qc2 {[%clk 0:01:24.6]} 24... Bb5 {[%clk 0:00:43.2]}
25. a4 {[%clk 0:01:18.9]} 25... Bxc4 {[%clk 0:00:32]} 26. Qxc4 {[%clk
0:01:19.8]} 26... Qb7 {[%clk 0:00:20.6]} 27. e4 {[%clk 0:01:16.4]} 27... Qd7
{[%clk 0:00:19.5]} 28. b3 {[%clk 0:01:15.4]} 28... Nh5 {[%clk 0:00:18.2]} 29.
Bh2 {[%clk 0:01:14.6]} 29... f5 {[%clk 0:00:17.2]} 30. e5 {[%clk 0:01:12.5]}
30... Ra7 {[%clk 0:00:13.9]} 31. e6 {[%clk 0:00:54.5]} 31... Qd8 {[%clk
0:00:12.2]} 32. d6 {[%clk 0:00:52.5]} 32... Ng7 {[%clk 0:00:09.3]} 33. Rcd1
{[%clk 0:00:48.1]} 33... Rc6 {[%clk 0:00:06.6]} 34. Be5 {[%clk 0:00:40.4]} 34...
Qe8 {[%clk 0:00:02.3]} 35. d7 {[%clk 0:00:32.5]} 35... Qd8 {[%clk 0:00:02.4]}
36. Bxg7 {[%clk 0:00:29.9]} 36... Kxg7 {[%clk 0:00:01.7]} 37. Re5 {[%clk
0:00:29.9]} 1-0

[Event "*** Titled Tuesday Blitz"]
[Site "Chess.com"]
[Date "2021.03.02"]
[Round "5"]
[White "NaciSAN"]
[Black "Balla_Tamas"]
[Result "0-1"]
[WhiteElo "2303"]
[BlackElo "2506"]
[TimeControl "180+1"]
[EndTime "10:55:05 PST"]
[Termination "Balla_Tamas won on time"]

1. e4 {[%clk 0:03:00.9]} 1... c5 {[%clk 0:02:58.2]} 2. Nf3 {[%clk 0:03:01]} 2...
e6 {[%clk 0:02:57.9]} 3. d3 {[%clk 0:02:59.8]} 3... d5 {[%clk 0:02:54.5]} 4.
Nbd2 {[%clk 0:02:59.1]} 4... Nc6 {[%clk 0:02:53.1]} 5. g3 {[%clk 0:02:59.3]}
5... b6 {[%clk 0:02:52.7]} 6. Bg2 {[%clk 0:02:59.4]} 6... dxe4 {[%clk
0:02:52.4]} 7. dxe4 {[%clk 0:02:58]} 7... Ba6 {[%clk 0:02:51.6]} 8. Bf1 {[%clk
0:02:54.9]} 8... Bxf1 {[%clk 0:02:49.1]} 9. Kxf1 {[%clk 0:02:55.8]} 9... Nf6
{[%clk 0:02:47.6]} 10. Kg2 {[%clk 0:02:54.8]} 10... Be7 {[%clk 0:02:47.8]} 11.
Qe2 {[%clk 0:02:51.1]} 11... Qc7 {[%clk 0:02:43]} 12. c3 {[%clk 0:02:50.3]}
12... O-O {[%clk 0:02:41.5]} 13. Nc4 {[%clk 0:02:49.4]} 13... b5 {[%clk
0:02:39.8]} 14. Ncd2 {[%clk 0:02:41]} 14... a6 {[%clk 0:02:38.1]} 15. a4 {[%clk
0:02:39.9]} 15... Qb7 {[%clk 0:02:26.6]} 16. Re1 {[%clk 0:02:38.3]} 16... Rfd8
{[%clk 0:02:19]} 17. h3 {[%clk 0:02:37]} 17... c4 {[%clk 0:02:15.6]} 18. Kg1
{[%clk 0:02:29.8]} 18... Nd7 {[%clk 0:02:13.4]} 19. Nf1 {[%clk 0:02:26.6]} 19...
Nc5 {[%clk 0:02:13]} 20. axb5 {[%clk 0:02:18.3]} 20... axb5 {[%clk 0:02:13.9]}
21. Rxa8 {[%clk 0:02:18]} 21... Rxa8 {[%clk 0:02:14]} 22. Be3 {[%clk 0:02:15.7]}
22... Nd3 {[%clk 0:02:11.8]} 23. Rd1 {[%clk 0:02:15.1]} 23... Ra2 {[%clk
0:02:10.5]} 24. Rd2 {[%clk 0:02:13.8]} 24... Na5 {[%clk 0:02:01.3]} 25. b4
{[%clk 0:01:41.4]} 25... Rxd2 {[%clk 0:01:33.4]} 26. N3xd2 {[%clk 0:01:42.3]}
26... Nc6 {[%clk 0:01:32.3]} 27. f4 {[%clk 0:01:32.8]} 27... f5 {[%clk
0:01:24.7]} 28. e5 {[%clk 0:01:32.1]} 28... Nb8 {[%clk 0:01:20.8]} 29. Nf3
{[%clk 0:01:22.7]} 29... Nc6 {[%clk 0:01:15.9]} 30. Ne1 {[%clk 0:01:19.6]} 30...
Qd7 {[%clk 0:01:11.5]} 31. Qd2 {[%clk 0:01:05]} 31... Ncxb4 {[%clk 0:01:03.5]}
32. Nxd3 {[%clk 0:00:50.4]} 32... Nxd3 {[%clk 0:01:01.9]} 33. Qa2 {[%clk
0:00:27.5]} 33... Qb7 {[%clk 0:01:01.5]} 34. Qa5 {[%clk 0:00:20.6]} 34... h6
{[%clk 0:01:01.4]} 35. Qb6 {[%clk 0:00:17]} 35... Qxb6 {[%clk 0:01:00]} 36. Bxb6
{[%clk 0:00:17.9]} 36... g5 {[%clk 0:00:59.6]} 37. Be3 {[%clk 0:00:12.1]} 37...
Kf7 {[%clk 0:00:59.1]} 38. Nd2 {[%clk 0:00:08.7]} 38... Kg6 {[%clk 0:00:58.9]}
39. Kf1 {[%clk 0:00:07.9]} 39... Bc5 {[%clk 0:00:57.9]} 40. Ke2 {[%clk
0:00:07.2]} 40... Nc1+ {[%clk 0:00:52.3]} 41. Kd1 {[%clk 0:00:07.3]} 41... Nd3
{[%clk 0:00:52.7]} 42. Ke2 {[%clk 0:00:07.2]} 42... Be7 {[%clk 0:00:51.8]} 43.
Bd4 {[%clk 0:00:03.4]} 43... gxf4 {[%clk 0:00:50.3]} 0-1

[Event "*** Titled Tuesday Blitz"]
[Site "Chess.com"]
[Date "2021.03.02"]
[Round "5"]
[White "Angry_Twin"]
[Black "manitodeplomo"]
[Result "1-0"]
[WhiteElo "2895"]
[BlackElo "2608"]
[TimeControl "180+1"]
[EndTime "10:55:06 PST"]
[Termination "Angry_Twin won on time"]

1. e4 {[%clk 0:03:00.9]} 1... g6 {[%clk 0:02:55.5]} 2. d4 {[%clk 0:03:00.9]}
2... Bg7 {[%clk 0:02:55.9]} 3. Nc3 {[%clk 0:03:01.6]} 3... c5 {[%clk 0:02:55.8]}
4. dxc5 {[%clk 0:03:01.1]} 4... Bxc3+ {[%clk 0:02:55.8]} 5. bxc3 {[%clk
0:03:01.1]} 5... Nf6 {[%clk 0:02:56.7]} 6. e5 {[%clk 0:02:56.7]} 6... Ne4 {[%clk
0:02:55.7]} 7. Qd4 {[%clk 0:02:50.2]} 7... Qa5 {[%clk 0:02:55.3]} 8. Bd3 {[%clk
0:02:48.6]} 8... Nc6 {[%clk 0:02:52.8]} 9. Qxe4 {[%clk 0:02:41.1]} 9... Qxc3+
{[%clk 0:02:52.3]} 10. Ke2 {[%clk 0:02:41.7]} 10... Qxa1 {[%clk 0:02:53.2]} 11.
Nf3 {[%clk 0:02:42.2]} 11... b6 {[%clk 0:02:47.5]} 12. h4 {[%clk 0:02:23.4]}
12... bxc5 {[%clk 0:02:03.3]} 13. h5 {[%clk 0:01:42.9]} 13... g5 {[%clk
0:01:25]} 14. Rd1 {[%clk 0:01:26.3]} 14... Rb8 {[%clk 0:00:47.5]} 15. Bxg5
{[%clk 0:01:22.7]} 15... Rb1 {[%clk 0:00:47.3]} 16. Rxb1 {[%clk 0:01:22.6]}
16... Qxb1 {[%clk 0:00:47.2]} 17. Qf4 {[%clk 0:00:51.5]} 17... Qb4 {[%clk
0:00:39.1]} 18. Qg3 {[%clk 0:00:35.4]} 18... Qa4 {[%clk 0:00:11.7]} 19. Be3
{[%clk 0:00:32.5]} 19... Ba6 {[%clk 0:00:11.7]} 20. Qg7 {[%clk 0:00:16.5]} 20...
Rf8 {[%clk 0:00:09.2]} 21. Bh6 {[%clk 0:00:12.4]} 21... Qxc2+ {[%clk 0:00:05]}
22. Ke1 {[%clk 0:00:12.6]} 22... Qc3+ {[%clk 0:00:03.9]} 23. Nd2 {[%clk
0:00:12.8]} 23... Kd8 {[%clk 0:00:01.9]} 24. Qxf8+ {[%clk 0:00:11.6]} 24... Kc7
{[%clk 0:00:02.5]} 25. Bxa6 {[%clk 0:00:12.3]} 25... Qa1+ {[%clk 0:00:01.5]} 26.
Ke2 {[%clk 0:00:09.1]} 26... Qxe5+ {[%clk 0:00:01.6]} 27. Be3 {[%clk 0:00:08.1]}
27... Nd4+ {[%clk 0:00:01.4]} 28. Kf1 {[%clk 0:00:08.2]} 1-0

[Event "*** Titled Tuesday Blitz"]
[Site "Chess.com"]
[Date "2021.03.02"]
[Round "5"]
[White "Onischuk_V"]
[Black "NateSolon"]
[Result "1-0"]
[WhiteElo "2820"]
[BlackElo "2590"]
[TimeControl "180+1"]
[EndTime "10:55:09 PST"]
[Termination "Onischuk_V won on time"]

1. Nf3 {[%clk 0:03:00.9]} 1... d5 {[%clk 0:02:59.3]} 2. g3 {[%clk 0:03:01.3]}
2... Nf6 {[%clk 0:02:58.9]} 3. Bg2 {[%clk 0:03:01.8]} 3... e6 {[%clk 0:02:57.6]}
4. O-O {[%clk 0:03:01.6]} 4... Be7 {[%clk 0:02:57.8]} 5. d3 {[%clk 0:03:02.1]}
5... O-O {[%clk 0:02:56.7]} 6. Nbd2 {[%clk 0:03:02.6]} 6... c5 {[%clk
0:02:56.7]} 7. e4 {[%clk 0:03:02.9]} 7... Nc6 {[%clk 0:02:56.8]} 8. Re1 {[%clk
0:02:56.9]} 8... b5 {[%clk 0:02:49.4]} 9. e5 {[%clk 0:02:55]} 9... Nd7 {[%clk
0:02:49.3]} 10. Nf1 {[%clk 0:02:55.7]} 10... Bb7 {[%clk 0:02:41.8]} 11. h4
{[%clk 0:02:54.1]} 11... Qc7 {[%clk 0:02:38.9]} 12. Bf4 {[%clk 0:02:53.1]} 12...
Rfc8 {[%clk 0:02:36.9]} 13. Ne3 {[%clk 0:02:53]} 13... Qd8 {[%clk 0:02:35.7]}
14. h5 {[%clk 0:02:36.8]} 14... h6 {[%clk 0:02:34.6]} 15. Ng4 {[%clk 0:02:35.7]}
15... Bf8 {[%clk 0:02:34.1]} 16. Qd2 {[%clk 0:02:34.1]} 16... Ne7 {[%clk
0:02:31.7]} 17. Ngh2 {[%clk 0:02:14.9]} 17... b4 {[%clk 0:02:06.8]} 18. g4
{[%clk 0:02:14]} 18... a5 {[%clk 0:01:55.6]} 19. g5 {[%clk 0:02:13.9]} 19... Kh7
{[%clk 0:01:55.4]} 20. Bh3 {[%clk 0:02:06.2]} 20... Ra6 {[%clk 0:01:44.7]} 21.
Ng4 {[%clk 0:02:03]} 21... d4 {[%clk 0:01:34.9]} 22. Re4 {[%clk 0:01:47.4]}
22... Nf5 {[%clk 0:01:23.7]} 23. Kh2 {[%clk 0:01:43.3]} 23... c4 {[%clk
0:01:07.4]} 24. Rg1 {[%clk 0:01:42.5]} 24... Nc5 {[%clk 0:00:59.7]} 25. Qe2
{[%clk 0:01:38.9]} 25... Bxe4 {[%clk 0:00:53.3]} 26. dxe4 {[%clk 0:01:38.6]}
26... d3 {[%clk 0:00:53.8]} 27. cxd3 {[%clk 0:01:36.1]} 27... cxd3 {[%clk
0:00:53]} 28. Qe1 {[%clk 0:01:36.3]} 28... Nd4 {[%clk 0:00:51.8]} 29. Nxd4
{[%clk 0:00:37.2]} 29... Qxd4 {[%clk 0:00:51.6]} 30. gxh6 {[%clk 0:00:31.4]}
30... Nxe4 {[%clk 0:00:46.4]} 31. Be3 {[%clk 0:00:29.1]} 31... Qxb2 {[%clk
0:00:22.3]} 32. Qf1 {[%clk 0:00:29.3]} 32... Rc2 {[%clk 0:00:18.6]} 33. Qxd3
{[%clk 0:00:27]} 33... Kh8 {[%clk 0:00:08.2]} 34. Qxe4 {[%clk 0:00:24.1]} 34...
Rac6 {[%clk 0:00:03.1]} 35. hxg7+ {[%clk 0:00:23.2]} 35... Bxg7 {[%clk 0:00:04]}
36. h6 {[%clk 0:00:23.5]} 1-0

[Event "*** Titled Tuesday Blitz"]
[Site "Chess.com"]
[Date "2021.03.02"]
[Round "5"]
[White "PSvidler"]
[Black "Zkid"]
[Result "0-1"]
[WhiteElo "2913"]
[BlackElo "2830"]
[TimeControl "180+1"]
[EndTime "10:55:12 PST"]
[Termination "Zkid won by resignation"]

1. e4 {[%clk 0:03:00.9]} 1... c5 {[%clk 0:02:37.9]} 2. Nf3 {[%clk 0:02:58.9]}
2... Nc6 {[%clk 0:02:26.4]} 3. Bb5 {[%clk 0:02:56.8]} 3... g6 {[%clk 0:02:26.4]}
4. Bxc6 {[%clk 0:02:56]} 4... bxc6 {[%clk 0:02:26.3]} 5. O-O {[%clk 0:02:55.7]}
5... Bg7 {[%clk 0:02:23.5]} 6. Re1 {[%clk 0:02:55.6]} 6... Qc7 {[%clk
0:02:23.8]} 7. c3 {[%clk 0:02:45.1]} 7... d6 {[%clk 0:02:21.9]} 8. d4 {[%clk
0:02:44.4]} 8... cxd4 {[%clk 0:02:15.8]} 9. cxd4 {[%clk 0:02:44.4]} 9... Bg4
{[%clk 0:02:10.9]} 10. Be3 {[%clk 0:02:39.5]} 10... Nf6 {[%clk 0:02:08.3]} 11.
Nbd2 {[%clk 0:02:34.2]} 11... O-O {[%clk 0:02:07]} 12. Qc2 {[%clk 0:02:32.7]}
12... Rfc8 {[%clk 0:01:50.7]} 13. h3 {[%clk 0:02:31.2]} 13... Bxf3 {[%clk
0:01:44.8]} 14. Nxf3 {[%clk 0:02:30.7]} 14... d5 {[%clk 0:01:37.9]} 15. e5
{[%clk 0:02:23.1]} 15... Nd7 {[%clk 0:01:37.5]} 16. Rac1 {[%clk 0:02:09.5]}
16... e6 {[%clk 0:01:33.6]} 17. Qd2 {[%clk 0:02:09.1]} 17... c5 {[%clk
0:01:25.9]} 18. Bh6 {[%clk 0:02:06.6]} 18... Qd8 {[%clk 0:01:18.6]} 19. Bxg7
{[%clk 0:01:56]} 19... Kxg7 {[%clk 0:01:18.8]} 20. Qf4 {[%clk 0:01:55.8]} 20...
cxd4 {[%clk 0:01:13.3]} 21. Nxd4 {[%clk 0:01:52.2]} 21... Rxc1 {[%clk
0:01:06.9]} 22. Rxc1 {[%clk 0:01:51.8]} 22... Rc8 {[%clk 0:01:04.8]} 23. Rxc8
{[%clk 0:01:50.4]} 23... Qxc8 {[%clk 0:01:04.3]} 24. Qe3 {[%clk 0:01:50.3]}
24... Qc4 {[%clk 0:00:45.4]} 25. a3 {[%clk 0:01:50]} 25... Qc7 {[%clk
0:00:43.2]} 26. f4 {[%clk 0:01:49.3]} 26... Nb6 {[%clk 0:00:42.8]} 27. b3 {[%clk
0:01:39.8]} 27... h5 {[%clk 0:00:41.6]} 28. Kh2 {[%clk 0:01:37.3]} 28... Qe7
{[%clk 0:00:40]} 29. Qg3 {[%clk 0:01:23.7]} 29... Kf8 {[%clk 0:00:32.6]} 30. a4
{[%clk 0:01:20.6]} 30... Qb4 {[%clk 0:00:30.5]} 31. Qe3 {[%clk 0:01:14.5]} 31...
Nd7 {[%clk 0:00:21.1]} 32. Nc6 {[%clk 0:01:14.4]} 32... Qc5 {[%clk 0:00:21.3]}
33. Qxc5+ {[%clk 0:01:12.4]} 33... Nxc5 {[%clk 0:00:22.2]} 34. Nxa7 {[%clk
0:01:11.3]} 34... Nxb3 {[%clk 0:00:22.5]} 35. Nc6 {[%clk 0:01:09.8]} 35... Ke8
{[%clk 0:00:18.5]} 36. Kg3 {[%clk 0:01:09.7]} 36... Kd7 {[%clk 0:00:17.6]} 37.
Nb4 {[%clk 0:01:09.4]} 37... Kc7 {[%clk 0:00:17]} 38. Nc2 {[%clk 0:01:04.5]}
38... d4 {[%clk 0:00:15.1]} 39. Ne1 {[%clk 0:01:03.1]} 39... Nc5 {[%clk
0:00:14.8]} 40. a5 {[%clk 0:01:01.2]} 40... d3 {[%clk 0:00:14.5]} 41. Nf3 {[%clk
0:01:01.2]} 41... Ne4+ {[%clk 0:00:14.8]} 42. Kh4 {[%clk 0:01:00.5]} 42... Kb7
{[%clk 0:00:14.8]} 43. g4 {[%clk 0:01:00.3]} 43... hxg4 {[%clk 0:00:15.4]} 44.
hxg4 {[%clk 0:01:00.2]} 44... Ka6 {[%clk 0:00:16]} 45. f5 {[%clk 0:00:59.9]}
45... gxf5 {[%clk 0:00:15.4]} 46. gxf5 {[%clk 0:00:59.7]} 46... exf5 {[%clk
0:00:16.3]} 47. Kh5 {[%clk 0:00:56.3]} 47... Kxa5 {[%clk 0:00:14.7]} 48. Kh6
{[%clk 0:00:56.4]} 48... Kb6 {[%clk 0:00:13.4]} 49. Kg7 {[%clk 0:00:51]} 49...
d2 {[%clk 0:00:13.5]} 50. Nxd2 {[%clk 0:00:51]} 50... Nxd2 {[%clk 0:00:14.4]}
51. Kxf7 {[%clk 0:00:51.4]} 51... f4 {[%clk 0:00:13]} 52. e6 {[%clk 0:00:51.3]}
52... Ne4 {[%clk 0:00:12.5]} 53. e7 {[%clk 0:00:48.6]} 53... Nd6+ {[%clk
0:00:12.3]} 54. Ke6 {[%clk 0:00:48.3]} 54... Kc6 {[%clk 0:00:12.2]} 0-1